[Event "13th Rheinland-Pfalz-Open 2023"]
[Site "Neuwied-Engers"]
[Date "2023.06.11"]
[Round "7.1"]
[White "Peng, Li Min"]
[Black "Stillger, Bernhard"]
[Result "1-0"]
[Annotator "TA"]
[ECO "C44"]
[WhiteElo "2530"]
[BlackElo "2289"]
[PlyCount "87"]
[EventDate "2023.01.12"]
[EventType "swiss"]
[EventCountry "GER"]
[SourceTitle "playchess.com"]
[Source "ChessBase"]
[SourceQuality "1"]
[TimeControl "40/5400+30:1800+30"]

{[%evp 12,87,1,-2,4,8,12,11,9,5,18,16,21,18,33,39,45,8,16,10,12,5,5,7,13,0,7,0,45,43,54,10,16,8,33,38,38,38,36,42,57,47,111,89,136,148,126,56,125,127,157,153,185,185,195,195,206,186,196,182,300,295,324,324,517,555,531,508,479,476,29983,29984,29990,29991,29992,29993,29993,29981]} 1. e4 {[%emt 0:11:48]} e5 {[%emt 0:00:57]} 2. Nf3 {[%emt 0:00:20]} Nc6 {[%emt 0:00:26]} 3. c3 {[%emt 0:00:24]} Nf6 {[%emt 0:04:24]} 4. d4 {[%emt 0:00:04]} exd4 {[%emt 0:02:31]} 5. e5 {[%emt 0:00:06]} Nd5 {[%emt 0:01:27]} 6. cxd4 {[%emt 0:00:09]} d6 {[%emt 0:01:20]} 7. Bb5 {[%emt 0:00:15]} Be7 {[%emt 0:03:23] C44: Ponziani Opening and Scotch Gambit.} 8. Nc3 {[%emt 0:00:45]} Nxc3 {[%emt 0:02:07]} 9. bxc3 {[%emt 0:00:08]} O-O {[%emt 0:00:41] The position is equal.} 10. O-O {[%emt 0:00:08]} Bg4 {[%emt 0:12:20]} 11. h3 {[%emt 0:00:05]} Bh5 {[%emt 0:02:16]} 12. Re1 {[%emt 0:00:06] [#]} dxe5 $146 {[%emt 0:06:09]} ({Predecessor:} 12... a6 13. Bd3 dxe5 14. dxe5 Kh8 15. Bf4 Qd7 16. Be4 Rad8 17. Qxd7 Rxd7 18. Rab1 Na5 {1-0 Lu,S (2533)-Bok,B (2591) Wch U20 53rd 2014 (8)}) 13. Bxc6 {[%emt 0:00:04][%mdl 64] [#] Remove Defender} bxc6 {[%emt 0:00:08]} 14. g4 {[%emt 0:08:36][%cal Of3e5] And now Nxe5! would win.} Bg6 {[%emt 0:02:05]} 15. Nxe5 {[%emt 0:00:05]} Bd6 {[%emt 0:01:17]} 16. Qf3 {[%emt 0:01:55]} Bxe5 {[%emt 0:03:28]} (16... Qh4 {looks sharper.} 17. Re2 f5 18. Nxg6 hxg6 19. Rb1 fxg4 20. Qxg4 Qf6) 17. dxe5 {[%emt 0:02:46][%cal Oc1a3]} Qd5 {[%emt 0:08:11]} 18. Qg3 {[%emt 0:00:16]} (18. Qxd5 {simplifies} cxd5 19. Kh2 Rfe8 20. Be3) 18... Rfe8 {[%emt 0:10:52]} 19. Be3 {[%emt 0:00:05]} c5 {[%emt 0:04:32]} (19... Qxe5 20. Qxe5 Rxe5 21. f4 $16) (19... Rxe5 20. Rad1 Qa5 21. f4 $16) 20. f4 {[%emt 0:00:02][%cal Oc3c4] c4! would be deadly.} Bd3 {[%emt 0:00:30]} 21. Rad1 {[%emt 0:04:05]} c4 {[%emt 0:00:25]} 22. Bd4 {[%emt 0:00:03]} c5 {[%emt 0:03:55]} 23. Bf2 {[%emt 0:00:04]} Rab8 {[%emt 0:02:29]} 24. f5 {[%emt 0:02:55][%cal Oe5e6]} Rb2 {[%emt 0:03:14] [#]} 25. e6 $1 {[%emt 0:00:57]} fxe6 {[%emt 0:00:58]} (25... Rxa2 26. exf7+) 26. Re5 {[%emt 0:00:05] Dancing on a razor blade.} Qc6 {[%emt 0:07:02]} (26... Qb7 $14) 27. Rde1 $16 {[%emt 0:02:04]} Rb1 {[%emt 0:00:49]} (27... Qb7 $142) 28. Rxb1 {[%emt 0:06:24]} (28. Bxc5 Rxe1+ 29. Qxe1 Rb8 $15) 28... Bxb1 {[%emt 0:00:07]} 29. Qe3 {[%emt 0:00:22]} (29. Bxc5 $6 exf5 30. gxf5 Qd7 $14) (29. Rxc5 $16 Qa4 30. fxe6) 29... a6 {[%emt 0:04:36]} (29... h5 $14) 30. fxe6 {[%emt 0:00:38]} ({Of course not} 30. Qxc5 $6 Qxc5 31. Bxc5 Kf7 $11) 30... Bd3 {[%emt 0:01:14]} 31. e7 {[%emt 0:02:14]} ({Resist} 31. Qxc5 $6 Rxe6 32. Qxc6 Rxc6 $14) 31... Qf6 {[%emt 0:01:57]} 32. Qxc5 {[%emt 0:00:40]} ({Weaker is} 32. Rxc5 Kf7 $11) 32... Qf3 {[%emt 0:04:46]} 33. Re3 {[%emt 0:01:30]} Qf7 {[%emt 0:00:08]} 34. Qe5 {[%emt 0:03:02] Black is weak on the dark squares} Bg6 {[%emt 0:00:42]} 35. Re1 {[%emt 0:00:56]} h5 {[%emt 0:01:13]} (35... Qf6 {is a better defense.} 36. Bc5 Qxe5 37. Rxe5 Kf7) 36. Bd4 $18 {[%emt 0:02:06]} hxg4 {[%emt 0:01:03]} 37. hxg4 {[%emt 0:00:04] Hoping for Qd6.} Bd3 {[%emt 0:00:21]} (37... Qf6 $142 38. Qxf6 gxf6 39. Bxf6 Kf7) 38. Kg2 {[%emt 0:00:32]} Qg6 {[%emt 0:00:54]} 39. Kg3 {[%emt 0:00:09]} Qf7 {[%emt 0:00:17]} 40. Re3 {[%emt 0:00:13] aiming for Bc5.} Kh8 {[%emt 0:01:42]} (40... Kh7 $18 41. Bc5 Qg6) 41. Bc5 {[%emt 0:30:28] White mates.} Bh7 {[%emt 0:32:39]} 42. Rf3 {[%emt 0:00:11]} Qg6 {[%emt 0:00:15]} 43. Rf8+ {[%emt 0:00:06]} Bg8 {[%emt 0:00:03]} 44. Qh5+ {[%emt 0:00:05] An entertaining game by Peng.   Weighted Error Value: White=0.07 (flawless) /Black=0.37} 1-0

[Event "13th Rheinland-Pfalz-Open 2023"]
[Site "Neuwied-Engers"]
[Date "2023.06.11"]
[Round "7.2"]
[White "Iolis, Oleg"]
[Black "Winterberg, Lukas"]
[Result "0-1"]
[Annotator "TA"]
[ECO "C70"]
[WhiteElo "2168"]
[BlackElo "2405"]
[PlyCount "102"]
[EventDate "2023.01.12"]
[EventType "swiss"]
[EventCountry "GER"]
[SourceTitle "playchess.com"]
[Source "ChessBase"]
[SourceQuality "1"]
[TimeControl "40/5400+30:1800+30"]

{[%evp 9,102,28,34,1,20,13,10,15,10,9,10,0,0,0,0,-36,-36,-17,-10,-28,0,-3,0,0,8,11,8,-2,14,0,0,0,0,-174,-46,-66,-67,-97,-73,-73,-72,-87,-67,-87,-81,-143,-146,-153,-122,-129,-129,-129,-129,-129,-123,-126,-129,-129,-129,-153,-153,-153,-153,-153,-153,-179,-179,-1235,-1164,-1206,-1218,-1225,-1008,-1255,-1202,-1459,-308,-1625,-1423,-1306,-1000,-207,-166,-1595,-1850,-1727,-1004,-1950,-1949,-1752,-1752,-1774,-1700,-1342,-1217]} 1. e4 {[%emt 0:00:01]} e5 {[%emt 0:00:13]} 2. Nf3 {[%emt 0:00:05]} Nc6 {[%emt 0:00:15]} 3. Bb5 {[%emt 0:00:06][%cal Bf1b5,Bb5a4,Ba4b3][%mdl 32]} a6 {[%emt 0:00:13]} 4. Ba4 {[%emt 0:00:03]} Nge7 {[%emt 0:00:14]} 5. Nc3 {[%emt 0:00:34]} Ng6 {[%emt 0:01:20]} 6. d4 {[%emt 0:00:16] C70: Ruy Lopez: 3...a6 4 Ba4, Norwegian and Delayed Schliemann.} Nxd4 {[%emt 0:01:38]} 7. Nxd4 {[%emt 0:00:15]} exd4 {[%emt 0:00:03]} 8. Qxd4 {[%emt 0:00:14] The position is equal.} b5 $1 {[%emt 0:02:04]} 9. Bb3 {[%emt 0:00:03]} Bb7 {[%emt 0:00:20] Against Qd5} 10. Qe3 {[%emt 0:05:49]} Bd6 {[%emt 0:02:58]} 11. O-O {[%emt 0:04:03][%cal Oe4e5]} O-O {[%emt 0:00:18] [#]} 12. Qg5 $146 {[%emt 0:01:32]} ({Predecessor:} 12. f4 Qe7 13. Kh1 Bc5 14. Qd3 Rae8 15. f5 Ne5 16. Qg3 Kh8 17. Bf4 d6 18. Rad1 {0-1 Tregubov,P (2543)-Demchenko,A (2654) Chess.com Rapid Wk17 Swiss 2022 (9)}) 12... Qxg5 {[%emt 0:13:37]} 13. Bxg5 {[%emt 0:00:13]} Rae8 {[%emt 0:00:14]} 14. f3 {[%emt 0:02:19]} b4 {[%emt 0:04:28]} (14... c5 $5 {[%cal Rc5c4]} 15. Rad1 Be5 $15) 15. Nd1 {[%emt 0:04:32]} Kh8 {[%emt 0:01:20]} 16. Ba4 {[%emt 0:05:11]} f6 {[%emt 0:01:30]} 17. Be3 {[%emt 0:00:13]} Re7 {[%emt 0:00:51]} 18. c3 {[%emt 0:01:14]} bxc3 {[%emt 0:09:26]} 19. Nxc3 {[%emt 0:00:10]} f5 {[%emt 0:02:21][%cal Rf5e4]} 20. Bg5 {[%emt 0:03:04]} Re5 {[%emt 0:01:04]} 21. f4 $2 {[%emt 0:04:25]} (21. Bd2 $11 {and White stays safe.}) 21... Rxe4 {[%emt 0:03:07]} ({Black should play} 21... Ra5 $19 {Hoping for ...h6.} 22. Bxd7 (22. exf5 Raxf5 23. Bxd7 h6 $19) 22... h6 23. Bxf5 Raxf5 24. exf5 Rxf5 25. Bxh6 gxh6) 22. Nxe4 $15 {[%emt 0:00:09]} (22. Bxd7 $2 Rb4 23. Be6 h6 $19) 22... Bxe4 {[%emt 0:00:10]} 23. Bd1 {[%emt 0:07:53] White is on the road to losing.} (23. Bxd7 $2 {perishes.} h6 24. Rac1 hxg5 25. fxg5 Ne5 $19) 23... h6 {[%emt 0:04:49][%cal Bh7h6,Bh6g5][%mdl 32] Black has more active pieces. The white rooks are badly placed.} 24. Bh5 {[%emt 0:00:03]} hxg5 {[%emt 0:00:18]} 25. Bxg6 {[%emt 0:00:06]} Bxf4 {[%emt 0:00:25] This pair of bishops is nice.} 26. Rae1 {[%emt 0:03:42][%cal Og2g4] Wards off Be3+} Rf6 $36 {[%emt 0:05:09][%mdl 2048] White is under strong pressure.} 27. Be8 {[%emt 0:00:10]} (27. Bh5 $142) 27... d5 $17 {[%emt 0:00:31][%cal Bd7d5,Bd5d4][%mdl 32]} 28. h4 {[%emt 0:01:19]} d4 {[%emt 0:07:40]} 29. hxg5 {[%emt 0:01:52]} Bxg5 {[%emt 0:01:38] And now ...Be3+ would win.} 30. Rxe4 {[%emt 0:00:15]} fxe4 {[%emt 0:00:04]} 31. Rxf6 {[%emt 0:00:03]} Bxf6 {[%emt 0:06:29][%mdl 4096] Endgame KB-KB} 32. Bg6 {[%emt 0:03:12]} e3 {[%emt 0:00:47]} 33. Bd3 {[%emt 0:00:12]} a5 $1 {[%emt 0:00:09]} 34. a4 {[%emt 0:00:42]} Kg8 {[%emt 0:01:30]} 35. Kf1 {[%emt 0:01:14]} Kf7 {[%emt 0:00:13]} 36. Ke2 {[%emt 0:00:14]} Ke6 {[%emt 0:00:10]} 37. b3 {[%emt 0:00:23]} Kd5 {[%emt 0:01:20]} 38. Bg6 $2 {[%emt 0:04:54]} (38. Bc4+ Ke4 39. Ba6) 38... Kc5 $1 $19 {[%emt 0:00:21]} 39. Kd3 {[%emt 0:00:15]} Kb4 {[%emt 0:00:14]} 40. Bf7 {[%emt 0:00:09] [#]} Ka3 $1 {[%emt 0:00:59] ...Kb2 is the strong threat.} 41. Be6 {[%emt 0:30:26]} c5 {[%emt 0:30:44] White must now prevent ...Kb2.} 42. Bd5 {[%emt 0:00:20]} Kb2 $2 {[%emt 0:00:24]} (42... g5 43. Be6 Be5) 43. Be6 $2 {[%emt 0:00:11]} (43. Bg8) 43... Be7 {[%emt 0:06:51]} 44. Bd5 {[%emt 0:03:51]} g6 {[%emt 0:00:19][%cal Bg7g6,Bg6g5,Bg5g4][%mdl 32]} 45. Be6 {[%emt 0:00:28]} g5 {[%emt 0:00:53][%cal Oe3e2] Strongly threatening ...e2!} 46. Bd5 $2 {[%emt 0:02:39]} (46. g4) 46... g4 {[%emt 0:00:12] Black is clearly winning.} 47. Be6 {[%emt 0:00:03]} Bf8 {[%emt 0:01:14]} 48. Bd5 {[%emt 0:00:56] [#]} e2 $1 {[%emt 0:05:22][%mdl 64] Deflection} 49. Kxe2 {[%emt 0:00:09] [#]} Kc2 $1 {[%emt 0:00:07] ( -> ...d3+)} 50. Bc4 {[%emt 0:03:59]} Bg7 {[%emt 0:01:20]} 51. Bb5 {[%emt 0:00:53]} Kxb3 {[%emt 0:00:31] Weighted Error Value: White=0.70/Black=0.26 (precise)} 0-1

[Event "13th Rheinland-Pfalz-Open 2023"]
[Site "Neuwied-Engers"]
[Date "2023.06.11"]
[Round "7.3"]
[White "Baerwinkel, Tobias"]
[Black "Foerster, Erik"]
[Result "1/2-1/2"]
[Annotator "TA"]
[ECO "D36"]
[WhiteElo "2324"]
[BlackElo "2165"]
[PlyCount "105"]
[EventDate "2023.01.12"]
[EventType "swiss"]
[EventCountry "GER"]
[SourceTitle "playchess.com"]
[Source "ChessBase"]
[SourceQuality "1"]
[TimeControl "40/5400+30:1800+30"]

{[%evp 19,105,-28,-16,-15,16,0,0,0,36,12,15,25,24,14,30,0,0,0,0,0,0,-20,153,125,147,131,204,12,12,12,12,12,12,8,33,27,33,32,72,33,38,8,9,12,8,0,0,0,0,0,0,0,0,-56,-87,-87,-24,-72,0,0,0,-8,0,0,0,0,0,0,0,0,0,0,0,0,0,0,0,0,0,0,0,0,0,0,0,0,0,0]} 1. d4 {[%emt 0:00:06]} Nf6 {[%emt 0:00:09]} 2. c4 {[%emt 0:00:21]} e6 {[%emt 0:00:06]} 3. Nc3 {[%emt 0:02:39]} d5 {[%emt 0:00:07]} 4. cxd5 {[%emt 0:00:47]} exd5 {[%emt 0:00:02]} 5. Bg5 {[%emt 0:00:06]} Be7 {[%emt 0:00:14]} 6. e3 {[%emt 0:00:39]} c6 {[%emt 0:00:19]} 7. Qc2 {[%emt 0:02:36]} O-O {[%emt 0:01:36]} 8. Bd3 {[%emt 0:01:17]} h6 {[%emt 0:00:16]} 9. h4 {[%emt 0:07:00]} Re8 {[%emt 0:04:39]} 10. Nf3 {[%emt 0:06:26]} Nbd7 {[%emt 0:07:03]} 11. Bf4 {[%emt 0:00:50] D36: Queen's Gambit Declined: Exchange Variation: Main line (5 Bg5 c6 6 Qc2).} c5 {[%emt 0:13:19] [#]} 12. g4 $146 {[%emt 0:08:45]} ({Predecessor:} 12. O-O-O a6 13. g4 c4 14. Bf5 Nf8 15. g5 Bxf5 16. Qxf5 g6 17. Qh3 Nh5 18. gxh6 b5 {1-0 Sisatto,O (2227)-Soppela,J (2168) FIN-chT 0203 2002 (5.8)}) 12... cxd4 $1 {[%emt 0:04:27]} 13. Nxd4 {[%emt 0:01:09] Strongly threatening g5.} Nc5 {[%emt 0:03:00]} (13... Nxg4 $5 {[%cal Re7h4]} 14. O-O-O (14. Nxd5 Bxh4 15. O-O-O Ndf6 $11) 14... Bxh4 $11) 14. g5 {[%emt 0:03:50]} Nxd3+ {[%emt 0:00:17]} 15. Qxd3 {[%emt 0:00:04]} Ne4 {[%emt 0:06:45]} 16. f3 $36 {[%emt 0:14:44][%mdl 2048] Black is under pressure.} (16. gxh6 {is more complex.} g6 17. h5 g5 18. Rg1) 16... Nxc3 {[%emt 0:02:41]} 17. bxc3 {[%emt 0:00:04]} (17. Qxc3 $5 {[%cal Rg5h6]} Bd6 18. Bxd6 Qxd6 19. O-O-O $11) 17... h5 {[%emt 0:01:15]} 18. g6 {[%emt 0:00:47] gxf7+ is the strong threat.} Be6 {[%emt 0:10:00][%cal Of7g6]} 19. Kd2 {[%emt 0:04:26]} Bf6 {[%emt 0:02:03]} 20. Bg5 {[%emt 0:00:40]} Rc8 $2 {[%emt 0:03:14]} (20... Bxg5 $11 21. hxg5 fxg6 {[%mdl 64] Remove Defender}) 21. Rhg1 $16 {[%emt 0:07:37] White is more active.} Kf8 {[%emt 0:10:22]} 22. Bxf6 {[%emt 0:08:11]} Qxf6 {[%emt 0:00:59]} (22... gxf6 $16 23. Rac1 Qe7 24. gxf7 (24. g7+ Kg8 $14) 24... Bxf7) 23. gxf7 $2 {[%emt 0:01:16]} ({Only move:} 23. Rg5 $18) 23... Bxf7 $11 {[%emt 0:01:30]} 24. Rg5 {[%emt 0:01:30] [#] And now Rag1 would win. Chess con chili.} Re5 {[%emt 0:03:54]} 25. Rag1 {[%emt 0:03:35] Black must now prevent Rxg7.} Rxg5 {[%emt 0:00:19]} 26. Rxg5 {[%emt 0:00:51]} g6 {[%emt 0:03:09] Against Rf5} 27. Qb5 {[%emt 0:01:03]} Qd6 {[%emt 0:01:44]} 28. f4 {[%emt 0:02:13]} ({Much worse is} 28. Qxb7 Rb8 29. Qxa7 Qh2+ 30. Kd3 Rb1 31. Qa3+ Kg7 $15) 28... Qc7 {[%emt 0:02:03] Black is weak on the dark squares} 29. Qb4+ {[%emt 0:01:14]} Qe7 $1 {[%emt 0:01:42]} 30. a3 {[%emt 0:02:37] next Nf3 is good for White.} Rc4 {[%emt 0:01:43][%cal Bc8c4,Bc4a4,Ba4a6][%mdl 32]} 31. Qxe7+ {[%emt 0:00:20]} (31. Qb2 {looks sharper.} Ra4 32. f5 gxf5 33. Rxf5 Kg8 34. Rg5+) 31... Kxe7 {[%emt 0:00:01][%mdl 4096] Endgame KRB-KRN} 32. Kc2 {[%emt 0:00:01]} Ra4 {[%emt 0:01:00]} 33. Kb2 {[%emt 0:00:46]} Ra6 {[%emt 0:00:12]} 34. Rg1 {[%emt 0:01:56]} Rb6+ {[%emt 0:00:47]} 35. Kc2 {[%emt 0:01:56]} Be8 {[%emt 0:03:33]} 36. Rb1 {[%emt 0:02:03]} (36. Rg5 $11) 36... Ba4+ $15 {[%emt 0:00:14]} 37. Kc1 {[%emt 0:00:03]} Rxb1+ {[%emt 0:00:54]} 38. Kxb1 $17 {[%emt 0:00:03] [#] KB-KN} Kd6 {[%emt 0:01:14]} ({Better is} 38... Bd1 $1 $17) 39. Nf3 $11 {[%emt 0:00:56] The position is equal.} Bd7 {[%emt 0:00:50]} 40. Kc2 {[%emt 0:00:37]} Kc5 {[%emt 0:00:37]} 41. Ne5 {[%emt 0:31:10][%csl LRd7,LRg6]} Bf5+ {[%emt 0:30:13]} 42. Kb3 {[%emt 0:00:08]} b5 {[%emt 0:01:27]} 43. Kb2 {[%emt 0:02:00]} Be4 {[%emt 0:09:10]} 44. Kc1 {[%emt 0:00:56]} Bf5 {[%emt 0:00:22]} 45. Kd1 {[%emt 0:03:26]} Be4 {[%emt 0:00:26]} 46. Ke2 {[%emt 0:00:35]} a5 {[%emt 0:01:37]} 47. Kd2 {[%emt 0:03:15]} Bf5 {[%emt 0:00:00]} 48. Ke2 {[%emt 0:00:00]} Be4 {[%emt 0:00:00]} 49. Kf2 {[%emt 0:00:00]} Bf5 {[%emt 0:00:00]} 50. Kg3 {[%emt 0:00:00]} a4 {[%emt 0:00:00]} 51. Kf2 {[%emt 0:00:00]} Bc2 {[%emt 0:00:00]} 52. Ke2 {[%emt 0:00:00]} Be4 {[%emt 0:00:00]} 53. Kd2 {[%emt 0:09:26] Weighted Error Value: White=0.19 (very precise) /Black=0.16 (very precise)} 1/2-1/2

[Event "13th Rheinland-Pfalz-Open 2023"]
[Site "Neuwied-Engers"]
[Date "2023.06.11"]
[Round "7.4"]
[White "Wiley, Tom E"]
[Black "Ronge, Tim"]
[Result "0-1"]
[Annotator "TA"]
[ECO "A45"]
[WhiteElo "2126"]
[BlackElo "2266"]
[PlyCount "56"]
[EventDate "2023.01.12"]
[EventType "swiss"]
[EventCountry "GER"]
[SourceTitle "playchess.com"]
[Source "ChessBase"]
[SourceQuality "1"]
[TimeControl "40/5400+30:1800+30"]

{[%evp 9,56,14,31,15,29,27,40,31,45,34,33,17,37,35,46,45,40,36,60,52,84,84,85,91,95,88,86,73,124,39,45,10,48,12,16,0,0,0,0,-43,24,-67,64,-29951,-9047,-5414,-845,-5289,-2933]} 1. d4 {[%emt 0:00:02]} Nf6 {[%emt 0:11:04]} 2. Bg5 {[%emt 0:00:07]} c5 {[%emt 0:00:57]} 3. Bxf6 {[%emt 0:00:31]} gxf6 {[%emt 0:00:03]} 4. d5 {[%emt 0:00:19]} f5 {[%emt 0:00:23]} 5. c4 {[%emt 0:01:26]} Bg7 {[%emt 0:02:06]} 6. Nc3 {[%emt 0:01:07] A45: Trompowsky Attack.} d6 {[%emt 0:00:49]} 7. Qc2 {[%emt 0:01:38]} O-O {[%emt 0:01:49]} 8. e3 {[%emt 0:00:46] White is slightly better.} Na6 {[%emt 0:00:32]} 9. a3 {[%emt 0:05:15]} Nc7 {[%emt 0:03:11]} 10. Bd3 {[%emt 0:00:23]} e6 {[%emt 0:00:10][%cal Ob7b5]} 11. Nge2 {[%emt 0:04:31] [#]} b5 $146 {[%emt 0:08:09][%mdl 64] Deflection} ({Predecessor:} 11... Qg5 12. Ng3 h6 13. O-O f4 14. Nge4 Qe5 15. exf4 Qxf4 16. Rae1 exd5 17. cxd5 Bg4 {0-1 Petrova,I (2087)-Ochedzan,T (2157) Titled Tuesday intern op 7th July blitz 2020 (9)}) 12. Nxb5 {[%emt 0:09:19]} Nxb5 {[%emt 0:02:30]} 13. cxb5 {[%emt 0:00:05]} exd5 {[%emt 0:03:30]} 14. O-O {[%emt 0:02:12]} Rb8 {[%emt 0:18:27]} 15. Nc3 {[%emt 0:12:34]} Be6 {[%emt 0:06:24]} 16. Bxf5 {[%emt 0:01:59]} d4 {[%emt 0:02:42] [#]} 17. exd4 $1 {[%emt 0:03:45]} (17. Bxh7+ $6 Kh8 18. exd4 cxd4 $11) 17... cxd4 {[%emt 0:02:39]} 18. Ne2 {[%emt 0:03:18]} Rxb5 {[%emt 0:01:46]} (18... Bxf5 $142 19. Qxf5 Qe8) 19. Ng3 {[%emt 0:14:59]} (19. Bxh7+ $16 Kh8 20. Bd3) 19... Qh4 {[%emt 0:09:53]} 20. Bd3 {[%emt 0:03:22]} Rc5 {[%emt 0:01:27]} (20... Rb3 $5 {[%cal Rg7e5]}) 21. Qe2 {[%emt 0:01:44]} Re5 {[%emt 0:01:48]} 22. Qd1 {[%emt 0:06:30]} Bh6 $1 {[%emt 0:01:21]} 23. Re1 {[%emt 0:04:02]} Bf4 {[%emt 0:01:17]} 24. Be4 {[%emt 0:10:07] White is weak on the dark squares} Rc8 {[%emt 0:05:50]} (24... Re8 $15 25. Bd3 (25. Qxd4 Bf5 $17) 25... Bd7) 25. Qd3 {[%emt 0:02:34] [#]} ({White should play} 25. Qxd4 $11 f5 26. Bb7 Bxg3 27. Qxh4 Bxh4 28. Bxc8 Bxc8 29. Rxe5 dxe5 30. Rc1) 25... Rh5 {[%emt 0:03:30] Black is more active.} 26. Nf1 $2 {[%emt 0:07:22][%mdl 8192]} (26. Qxd4 $2 {too greedy.} Qxh2+ 27. Kf1 Bxg3 28. fxg3 Qxg3 $19) (26. Nxh5 Qxh2+ 27. Kf1 Qh1+ 28. Ke2 Qxh5+ 29. Bf3 Qa5 $19) (26. h3 $14 Rg5 27. Nf5 Bh2+ 28. Kh1 (28. Kxh2 Bxf5 29. Bxf5 Qf4+ 30. Kh1 Rxf5 $16) 28... Bxf5 29. Bxf5 Qxf2 30. Bxh7+ Kg7 31. Re2) 26... Bxh2+ {[%emt 0:00:22]} 27. Nxh2 {[%emt 0:00:04]} Qxh2+ {[%emt 0:00:03]} 28. Kf1 {[%emt 0:00:02]} Bc4 {[%emt 0:00:05] Weighted Error Value: White=0.38/Black=0.23 (precise)} 0-1

[Event "13th Rheinland-Pfalz-Open 2023"]
[Site "Neuwied-Engers"]
[Date "2023.06.11"]
[Round "7.5"]
[White "Polster, Christian"]
[Black "Gasber, Johannes"]
[Result "1-0"]
[Annotator "TA"]
[ECO "B13"]
[WhiteElo "2250"]
[BlackElo "1687"]
[PlyCount "77"]
[EventDate "2023.01.12"]
[EventType "swiss"]
[EventCountry "GER"]
[SourceTitle "playchess.com"]
[Source "ChessBase"]
[SourceQuality "1"]
[TimeControl "40/5400+30:1800+30"]

{[%evp 9,77,-4,-5,-8,3,-18,-12,-13,-13,-20,0,-18,0,-4,0,-41,8,-4,-6,-20,1,3,14,3,13,4,20,20,27,41,20,20,48,20,8,10,40,48,114,79,75,58,106,97,93,63,95,48,52,52,274,118,390,174,676,641,685,674,5312,5309,5413,5406,5351,5285,1767,1035,29968,29969,29957,29963]} 1. d4 {[%emt 0:00:03]} Nf6 {[%emt 0:00:06]} 2. Nc3 {[%emt 0:00:06]} d5 {[%emt 0:00:10]} 3. Bf4 {[%emt 0:00:11]} c5 {[%emt 0:00:09]} 4. e3 {[%emt 0:00:07]} cxd4 {[%emt 0:00:10]} 5. exd4 {[%emt 0:00:10]} a6 {[%emt 0:00:05]} 6. Nf3 {[%emt 0:01:15] B13: Caro-Kann: Exchange Variation and Panov-Botvinnik Attack.} Nc6 {[%emt 0:00:15]} 7. a3 {[%emt 0:06:04]} Bg4 {[%emt 0:04:45]} 8. Be2 {[%emt 0:01:58] The position is equal.} e6 {[%emt 0:01:12]} 9. O-O {[%emt 0:15:52]} Be7 {[%emt 0:09:32]} 10. Ne5 {[%emt 0:06:29]} Bxe2 {[%emt 0:02:05]} 11. Nxe2 {[%emt 0:00:03] [#]} Qb6 $146 {[%emt 0:11:06]} ({Predecessor:} 11... O-O 12. Nxc6 bxc6 13. Qd3 c5 14. c4 dxc4 15. Qxc4 Qb6 16. dxc5 Bxc5 17. b4 Be7 {½-½ Llavata Sanchis,R-Palacios Perez,J (2069) Valencia Autonomico North 2004 (4.8)}) 12. Nxc6 {[%emt 0:18:21]} Qxc6 {[%emt 0:01:20]} (12... bxc6 $15 13. b4 O-O) 13. Bg5 {[%emt 0:05:11]} h6 {[%emt 0:08:31]} 14. Bxf6 {[%emt 0:06:19]} Bxf6 {[%emt 0:00:29]} 15. c3 {[%emt 0:00:08]} O-O {[%emt 0:02:24]} 16. Nf4 {[%emt 0:01:47]} g6 {[%emt 0:07:59]} 17. Qg4 {[%emt 0:04:19]} Bg7 {[%emt 0:00:59]} 18. Rae1 {[%emt 0:00:51]} b5 {[%emt 0:03:08]} 19. Re3 {[%emt 0:01:37]} a5 {[%emt 0:03:25][%cal Ob5b4]} 20. Nd3 {[%emt 0:02:38]} Qd6 {[%emt 0:11:06]} 21. h4 {[%emt 0:03:17]} h5 {[%emt 0:01:47]} 22. Qd1 {[%emt 0:00:25]} Qe7 {[%emt 0:04:13]} 23. Rh3 {[%emt 0:00:39]} Bf6 {[%emt 0:02:39]} (23... Qf6 $14) 24. Re1 {[%emt 0:09:34]} Bxh4 {[%emt 0:04:00] [#]} 25. g4 $1 {[%emt 0:04:32]} Kg7 {[%emt 0:03:31]} (25... hxg4 $14 {deserves consideration.} 26. Qxg4 Bf6) 26. gxh5 $16 {[%emt 0:00:45] Black must now prevent Qg4.} g5 {[%emt 0:00:45]} (26... Qg5+ $2 27. Kf1 Rh8 28. Re5 $18) 27. Qg4 {[%emt 0:02:56]} Kh6 {[%emt 0:01:05]} 28. Nc5 {[%emt 0:03:24]} (28. Ne5 $16) 28... Rae8 $14 {[%emt 0:17:34]} 29. Re5 $36 {[%emt 0:02:12][%mdl 2048] White has good play.} f5 $2 {[%emt 0:00:00]} (29... Qf6 $14) 30. Qg2 {[%emt 0:00:29]} (30. Rxe6+ $2 Qxe6 31. Qd1 Qe2 32. Qxe2 Rxe2 $19) (30. Qe2 $18 Qf7 31. Rhe3 (31. Nxe6 Rg8 $18) (31. Rxe6+ Rxe6 32. Nxe6 Rg8 $18) (31. Qxb5 Qxh5 32. Rxe6+ Rxe6 $16)) 30... Qf6 $2 {[%emt 0:00:00][%mdl 8192]} (30... Rf6 $16) 31. Rhe3 {[%emt 0:00:22]} (31. Nd7 $142 Qf7 32. Nxf8 Rxf8 33. Rhe3) 31... Kxh5 $2 {[%emt 0:00:00]} (31... f4 32. Re1 f3) 32. Nxe6 $18 {[%emt 0:00:54]} f4 {[%emt 0:00:00]} 33. Qf3+ {[%emt 0:00:55]} (33. Nxf8 $2 {perishes.} fxe3 34. fxe3 (34. Rxe8 $2 {too greedy.} exf2+ 35. Kf1 Qf5 $19) 34... Rxf8 $19) 33... Kh6 {[%emt 0:00:00]} 34. Nxf8 {[%emt 0:00:17]} Rxe5 {[%emt 0:00:00]} 35. Rxe5 {[%emt 0:00:23][%cal Be3e5,Be5e6,Be6e7][%mdl 32] [#] White wants to mate with Re6.} Qxf8 {[%emt 0:00:00]} 36. Re6+ {[%emt 0:00:52]} Kg7 {[%emt 0:00:03]} 37. Qxd5 {[%emt 0:00:12] White threatens Qe5+ and mate.} Qf7 {[%emt 0:01:34]} 38. Qe5+ {[%emt 0:00:10]} Kh7 {[%emt 0:01:28]} 39. Re7 {[%emt 0:00:09] Weighted Error Value: White=0.23 (precise) /Black=0.66.  Loses game:     	---       	Black=2      Missed win:     	---       	---        Mistake:       	White=3     	Black=4      Inaccurate:     	White=4     	Black=3      OK:         	White=7     	Black=8      Best:        	White=2     	Black=1      Strong:       	White=1     	---        Brilliant:      	---       	---} 1-0